fUST/lending_fUST_20251130
["ID","MTS","AMOUNT","RATE_DAILY","PERIOD"]
[395127869,1764459337677,152.35361628,0.00010228,2]
[395127870,1764459340985,-300.0,0.00010331,2]
[395127871,1764459341017,-300.0,0.00010331,2]
[395127872,1764459341049,-300.0,0.00010331,2]
[395127873,1764459341084,-300.0,0.00010331,2]
[395127874,1764459341115,-1200.0,0.00010331,2]
[395127879,1764459353367,5200.01,0.00010229,2]
[395127880,1764459353392,10000.01,0.00010229,2]
[395127881,1764459353419,10000.01,0.00010229,2]
[395127882,1764459353446,10000.01,0.00010229,2]
[395127883,1764459353473,10000.01,0.00010229,2]
[395127884,1764459353499,2687.30257759,0.00010229,2]
[395127885,1764459362603,300.0,0.00010331,2]
[395127889,1764459375728,7012.70742241,0.00010229,2]
[395127911,1764459567090,279.66523619,9.14e-05,2]
[395127913,1764459589069,279.66523619,9.14e-05,2]
[395127914,1764459611226,505.66523619,9.14e-05,2]
[395127915,1764459611945,-279.66523619,9.232e-05,2]
[395127916,1764459611968,-20.33476381,9.232e-05,2]
[395127917,1764459633954,205.66523619,9.14e-05,2]
[395127918,1764459640023,-205.66523619,9.232e-05,2]
[395127919,1764459641778,-310.69199052,9.681e-05,2]
[395127920,1764459643875,2998.9,0.00011,3]
[395127952,1764459873257,6627.0777469,9.273e-05,2]
[395127957,1764459957985,-396.36745054,9.806e-05,2]
[395127958,1764459958014,-396.36745054,9.905e-05,2]
[395127959,1764459958044,-1096.29282626,0.00010129,2]
[395127960,1764459958073,-528.50701685,0.00010132,2]
[395127961,1764459958103,-289.0,0.00010217,2]
[395127962,1764459958135,-300.0,0.00010217,2]
[395127963,1764459958165,-300.0,0.00010217,2]
[395127964,1764459958194,-1200.0,0.00010217,2]
[395127965,1764459958628,-3977.6615759,0.00010218,2]
[395127966,1764459958658,-499.9745386,0.00010218,2]
[395127967,1764459958704,-1200.0,0.00010327,2]
[395127968,1764459962263,300.0,0.00010326,2]
[395127969,1764459965365,-354.59275418,0.00010327,2]
[395127970,1764459965389,-500.0,0.00010327,2]
[395127971,1764459965412,-500.0,0.00010327,2]
[395127972,1764459965434,-500.0,0.00010327,2]
[395127973,1764459965456,-158.28363311,0.00010327,2]
[395127974,1764459965478,-299.18983766,0.00010327,2]
[395127975,1764459965501,-500.0,0.00010327,2]
[395127976,1764459965522,-500.0,0.00010327,2]
[395127977,1764459965549,-500.0,0.00010327,2]
[395127978,1764459965574,-500.0,0.00010327,2]
[395127979,1764459965599,-341.6166106,0.00010327,2]
[395127980,1764459972103,7300.01,0.00010224,2]
[395127981,1764459972128,2012.98804373,0.00010224,2]
[395127982,1764459991738,500.0,0.00010326,2]
[395127983,1764459991835,248.21492792,0.00010326,2]
[395127984,1764459991944,500.0,0.00010326,2]
[395127985,1764459992661,160.79854318,0.00010326,2]
[395127986,1764459993296,405.32970501,0.00010326,2]
[395127987,1764459993328,500.0,0.00010326,2]
[395127988,1764459993367,500.0,0.00010326,2]
[395127989,1764459993402,500.0,0.00010326,2]
[395127990,1764459993452,500.0,0.00010326,2]
[395127991,1764459993483,500.0,0.00010326,2]
[395127992,1764459993515,500.0,0.00010326,2]
[395127993,1764459993569,500.0,0.00010326,2]
[395127994,1764459993609,500.0,0.00010326,2]
[395127995,1764459993641,500.0,0.00010326,2]
[395127996,1764459993672,500.0,0.00010326,2]
[395127997,1764459993704,500.0,0.00010326,2]
[395127998,1764459993735,500.0,0.00010326,2]
[395127999,1764459993773,172.67878016,0.00010326,2]
[395128000,1764459993797,327.32121984,0.00010326,2]
[395128001,1764459993828,500.0,0.00010326,2]
[395128002,1764459993866,500.0,0.00010326,2]
[395128003,1764459993899,500.0,0.00010326,2]
[395128004,1764459993939,500.0,0.00010326,2]
[395128005,1764459993970,368.70891081,0.00010326,2]
[395128006,1764459994006,500.0,0.00010326,2]
[395128007,1764459994037,570.26192277,0.00010326,2]
[395128008,1764459994073,500.0,0.00010326,2]
[395128009,1764459994105,500.0,0.00010326,2]
[395128010,1764459994135,500.0,0.00010326,2]
[395128011,1764459994174,500.0,0.00010326,2]
[395128012,1764459994206,500.0,0.00010326,2]
[395128013,1764459994253,500.0,0.00010326,2]
[395128014,1764459994294,500.0,0.00010326,2]
[395128015,1764459994324,186.03428632,0.00010326,2]
[395128016,1764459994355,500.0,0.00010326,2]
[395128017,1764459994389,500.0,0.00010326,2]
[395128018,1764459994419,500.0,0.00010326,2]
[395128019,1764459994648,500.0,0.00010326,2]
[395128020,1764459994686,500.0,0.00010326,2]
[395128021,1764459994734,47.68366026,0.00010326,2]
[395128022,1764459994761,452.31633974,0.00010326,2]
[395128023,1764459994797,500.0,0.00010326,2]
[395128024,1764459994834,500.0,0.00010326,2]
[395128025,1764459994867,518.29388051,0.00010326,2]
[395128026,1764459994900,500.0,0.00010326,2]
[395128027,1764459994951,500.0,0.00010326,2]
[395128028,1764459994985,500.0,0.00010326,2]
[395128029,1764459995025,500.0,0.00010326,2]
[395128030,1764459995066,500.0,0.00010326,2]
[395128031,1764459995097,282.94751706,0.00010326,2]
[395128032,1764459995144,500.0,0.00010326,2]
[395128033,1764459995175,500.0,0.00010326,2]
[395128034,1764459995385,500.0,0.00010326,2]
[395128035,1764459995418,500.0,0.00010326,2]
[395128036,1764459995449,500.0,0.00010326,2]
[395128037,1764459995480,500.0,0.00010326,2]
[395128038,1764459995512,500.0,0.00010326,2]
[395128039,1764459995555,500.0,0.00010326,2]
[395128040,1764459995588,500.0,0.00010326,2]
[395128041,1764459995622,500.0,0.00010326,2]
[395128042,1764459995654,246.45226269,0.00010326,2]
[395128043,1764459995680,253.54773731,0.00010326,2]
[395128044,1764459995712,500.0,0.00010326,2]
[395128045,1764459995748,500.0,0.00010326,2]
[395128046,1764459995781,500.0,0.00010326,2]
[395128047,1764459995814,500.0,0.00010326,2]
[395128048,1764459995846,500.0,0.00010326,2]
[395128049,1764459995881,500.0,0.00010326,2]
[395128050,1764459995916,500.0,0.00010326,2]
[395128051,1764459995948,500.0,0.00010326,2]
[395128052,1764459995979,500.0,0.00010326,2]
[395128053,1764459996017,500.0,0.00010326,2]
[395128054,1764459996048,529.99999999,0.00010326,2]
[395128055,1764459996082,500.0,0.00010326,2]
[395128056,1764459996121,500.0,0.00010326,2]
[395128057,1764459996157,322.54505046,0.00010326,2]
[395128058,1764459996189,500.0,0.00010326,2]
[395128059,1764459996220,500.0,0.00010326,2]
[395128060,1764459996250,500.0,0.00010326,2]
[395128061,1764459996285,500.0,0.00010326,2]
[395128062,1764459996334,500.0,0.00010326,2]
[395128063,1764459996370,393.91721224,0.00010326,2]
[395128064,1764459996395,106.08278776,0.00010326,2]
[395128065,1764460005147,-395.758,0.00010329,2]
[395128066,1764460020599,-184.60867399,0.00010329,2]
[395128067,1764460020629,-151.0,0.00010329,2]
[395128068,1764460020660,-151.0,0.00010329,2]
[395128069,1764460020693,-151.0,0.00010329,2]
[395128070,1764460020724,-151.0,0.00010329,2]
[395128071,1764460020754,-151.0,0.00010329,2]
[395128072,1764460020783,-151.0,0.00010329,2]
[395128073,1764460020812,-151.0,0.00010329,2]
[395128074,1764460020841,-151.0,0.00010329,2]
[395128075,1764460020870,-151.0,0.00010329,2]
[395128076,1764460020901,-151.0,0.00010329,2]
[395128077,1764460020932,-151.0,0.00010329,2]
[395128078,1764460020962,-151.0,0.00010329,2]
[395128079,1764460020993,-151.0,0.00010329,2]
[395128080,1764460021023,-151.0,0.00010329,2]
[395128081,1764460021053,-151.0,0.00010329,2]
[395128082,1764460021085,-151.0,0.00010329,2]
[395128083,1764460021117,-151.0,0.00010329,2]
[395128084,1764460021147,-151.0,0.00010329,2]
[395128085,1764460021177,-151.0,0.00010329,2]
[395128086,1764460021208,-151.0,0.00010329,2]
[395128087,1764460021240,-153.34247359,0.00010329,2]
[395128088,1764460022527,300.0,0.00010328,2]
[395128089,1764460023573,500.0,0.00010326,2]
[395128090,1764460023613,500.0,0.00010326,2]
[395128091,1764460023867,500.0,0.00010326,2]
[395128092,1764460023945,500.0,0.00010326,2]
[395128093,1764460024159,500.0,0.00010326,2]
[395128094,1764460024262,484.10770484,0.00010326,2]
[395128095,1764460024297,15.89229516,0.00010326,2]
[395128096,1764460024445,500.0,0.00010326,2]
[395128097,1764460024570,500.0,0.00010326,2]
[395128098,1764460024773,500.0,0.00010326,2]
[395128099,1764460024871,500.0,0.00010326,2]
[395128100,1764460025082,500.0,0.00010326,2]
[395128101,1764460025185,500.0,0.00010326,2]
[395128102,1764460025400,500.0,0.00010326,2]
[395128103,1764460025759,500.0,0.00010326,2]
[395128104,1764460025823,500.0,0.00010326,2]
[395128105,1764460025882,500.0,0.00010326,2]
[395128106,1764460026076,500.0,0.00010326,2]
[395128107,1764460026126,500.0,0.00010326,2]
[395128108,1764460026448,450.0,0.00010326,2]
[395128109,1764460026768,500.0,0.00010326,2]
[395128110,1764460026830,500.0,0.00010326,2]
[395128111,1764460026872,500.0,0.00010326,2]
[395128112,1764460026908,500.0,0.00010326,2]
[395128113,1764460026944,500.0,0.00010326,2]
[395128114,1764460026979,500.0,0.00010326,2]
[395128115,1764460027020,500.0,0.00010326,2]
[395128116,1764460027055,34.11770484,0.00010326,2]
[395128117,1764460027082,465.88229516,0.00010326,2]
[395128118,1764460027117,500.0,0.00010326,2]
[395128119,1764460027156,500.0,0.00010326,2]
[395128120,1764460027199,500.0,0.00010326,2]
[395128121,1764460027235,500.0,0.00010326,2]
[395128122,1764460027270,500.0,0.00010326,2]
[395128123,1764460027312,500.0,0.00010326,2]
[395128124,1764460027346,500.0,0.00010326,2]
[395128125,1764460027380,500.0,0.00010326,2]
[395128126,1764460027415,500.0,0.00010326,2]
[395128127,1764460027450,500.0,0.00010326,2]
[395128128,1764460027493,500.0,0.00010326,2]
[395128129,1764460027529,500.0,0.00010326,2]
[395128130,1764460027571,500.0,0.00010326,2]
[395128131,1764460027612,500.0,0.00010326,2]
[395128132,1764460027652,500.0,0.00010326,2]
[395128133,1764460027689,500.0,0.00010326,2]
[395128134,1764460027725,500.0,0.00010326,2]
[395128135,1764460027769,333.26883562,0.00010326,2]
[395128136,1764460027809,500.0,0.00010326,2]
[395128137,1764460027844,200.85886922,0.00010326,2]
[395128138,1764460027872,299.14113078,0.00010326,2]
[395128139,1764460027907,500.0,0.00010326,2]
[395128140,1764460027941,500.0,0.00010326,2]
[395128141,1764460027976,500.0,0.00010326,2]
[395128142,1764460028011,500.0,0.00010326,2]
[395128143,1764460028051,500.0,0.00010326,2]
[395128144,1764460028085,500.0,0.00010326,2]
[395128145,1764460028121,500.0,0.00010326,2]
[395128146,1764460028157,500.0,0.00010326,2]
[395128147,1764460028191,500.0,0.00010326,2]
[395128148,1764460028228,500.0,0.00010326,2]
[395128149,1764460028267,500.0,0.00010326,2]
[395128150,1764460028312,500.0,0.00010326,2]
[395128151,1764460028348,500.0,0.00010326,2]
[395128152,1764460028404,500.0,0.00010326,2]
[395128153,1764460028448,500.0,0.00010326,2]
[395128154,1764460028491,500.0,0.00010326,2]
[395128155,1764460028529,500.0,0.00010326,2]
[395128156,1764460028581,500.0,0.00010326,2]
[395128157,1764460028617,500.0,0.00010326,2]
[395128158,1764460028661,200.86886922,0.00010326,2]
[395128159,1764460028689,299.13113078,0.00010326,2]
[395128160,1764460028725,500.0,0.00010326,2]
[395128161,1764460028765,500.0,0.00010326,2]
[395128162,1764460028800,500.0,0.00010326,2]
[395128163,1764460028847,500.0,0.00010326,2]
[395128164,1764460028882,500.0,0.00010326,2]
[395128165,1764460028922,391.86528647,0.00010326,2]
[395128166,1764460028958,500.0,0.00010326,2]
[395128167,1764460028997,500.0,0.00010326,2]
[395128168,1764460029032,500.0,0.00010326,2]
[395128169,1764460029070,500.0,0.00010326,2]
[395128170,1764460029106,500.0,0.00010326,2]
[395128171,1764460029149,500.0,0.00010326,2]
[395128172,1764460029194,500.0,0.00010326,2]
[395128173,1764460029229,500.0,0.00010326,2]
[395128174,1764460029288,500.0,0.00010326,2]
[395128175,1764460029330,500.0,0.00010326,2]
[395128176,1764460029363,500.0,0.00010326,2]
[395128177,1764460029400,500.0,0.00010326,2]
[395128178,1764460029433,500.0,0.00010326,2]
[395128179,1764460029471,309.01358275,0.00010326,2]
[395128180,1764460029500,190.98641725,0.00010326,2]
[395128181,1764460029537,500.0,0.00010326,2]
[395128182,1764460029580,500.0,0.00010326,2]
[395128183,1764460029668,500.0,0.00010326,2]
[395128184,1764460029714,500.0,0.00010326,2]
[395128185,1764460041790,500.0,0.00010326,2]
[395128186,1764460041823,500.0,0.00010326,2]
[395128187,1764460041857,500.0,0.00010326,2]
[395128188,1764460041891,500.0,0.00010326,2]
[395128189,1764460041928,500.0,0.00010326,2]
[395128190,1764460041961,500.0,0.00010326,2]
[395128191,1764460042002,500.0,0.00010326,2]
[395128192,1764460042048,500.0,0.00010326,2]
[395128193,1764460042221,-973.13955276,0.00010335,2]
[395128194,1764460046269,239.99080022,9.232e-05,2]
[395128195,1764460052112,-26.86044724,0.00010335,2]
[395128196,1764460052132,-155.20091774,0.00010335,2]
[395128197,1764460052297,301.13111876,0.00010326,2]
[395128198,1764460058632,912.30490416,0.00010232,2]
[395128221,1764460080880,1200.0,0.00010231,2]
[395128222,1764460081226,-1200.0,0.00010334,2]
[395128223,1764460083207,300.0,0.00010334,2]
[395128226,1764460098736,-912.30490416,0.00010335,2]
[395128230,1764460103107,3131.66332259,0.00010232,2]
[395128238,1764460115068,500.0,0.00010326,2]
[395128239,1764460115107,500.0,0.00010326,2]
[395128240,1764460115166,500.0,0.00010326,2]
[395128241,1764460115218,500.0,0.00010326,2]
[395128242,1764460115364,500.0,0.00010326,2]
[395128243,1764460115429,500.0,0.00010326,2]
[395128244,1764460115484,225.85803318,0.00010326,2]
[395128246,1764460119128,174.47354698,0.00010326,2]
[395128254,1764460121183,6599.67841984,0.00010228,2]
[395128256,1764460121212,10000.01,0.00010228,2]
[395128258,1764460121237,10000.01,0.00010228,2]
[395128260,1764460121263,10000.01,0.00010228,2]
[395128261,1764460121288,10000.01,0.00010228,2]
[395128262,1764460121315,10000.01,0.00010228,2]
[395128263,1764460121340,10000.01,0.00010228,2]
[395128264,1764460121365,10000.01,0.00010228,2]
[395128265,1764460121389,10000.01,0.00010228,2]
[395128266,1764460121608,10000.01,0.00010228,2]
[395128276,1764460140350,-150.0,0.00010126,2]
[395128279,1764460146100,-300.0,0.00010227,2]
[395128280,1764460146123,-1350.78469113,0.00010228,2]
[395128281,1764460148419,300.0,0.00010125,2]
[395128282,1764460151100,-5424.10726517,0.00010228,2]
[395128284,1764460156444,9400.01,0.00010126,2]
[395128285,1764460156470,1383.03941581,0.00010126,2]
[395128292,1764460171534,8616.97058419,0.00010126,2]
[395128293,1764460171558,10000.01,0.00010126,2]
[395128294,1764460171582,10000.01,0.00010126,2]
[395128295,1764460173093,-1781.87562717,0.00010126,2]
[395128296,1764460173116,-12940.06949872,0.00010228,2]
[395128297,1764460176662,214.25148764,8.907e-05,2]
[395128301,1764460202907,156.33,1e-05,2]
[395128302,1764460203185,156.33,1.2e-05,2]
[395128303,1764460203465,156.33,1.3e-05,2]
[395128304,1764460203748,156.33,1.5e-05,2]
[395128306,1764460204127,156.33,1.6e-05,2]
[395128307,1764460204419,156.33,1.8e-05,2]
[395128308,1764460204703,156.33,1.9e-05,2]
[395128309,1764460205075,156.33,2.1e-05,2]
[395128310,1764460205375,156.33,2.2e-05,2]
[395128311,1764460205662,156.33,2.4e-05,2]
[395128312,1764460205943,156.33,2.5e-05,2]
[395128314,1764460206266,156.33,2.7e-05,2]
[395128315,1764460206584,156.33,2.8e-05,2]
[395128316,1764460206920,156.33,3e-05,2]
[395128317,1764460207293,156.33,3.1e-05,2]
[395128318,1764460207569,156.33,3.3e-05,2]
[395128319,1764460207941,156.33,3.4e-05,2]
[395128382,1764460238143,-214.25148764,9.8e-05,2]
[395128384,1764460238152,-231.0,9.8e-05,2]
[395128386,1764460238161,-214.25148764,9.899e-05,2]
[395128388,1764460238170,-214.25148764,9.999e-05,2]
[395128390,1764460238179,-214.25148764,0.000101,2]
[395128391,1764460238188,-300.0,0.00010227,2]
[395128394,1764460238197,-230.47960229,0.00010227,2]
[395128396,1764460238208,-69.52039771,0.00010227,2]
[395128398,1764460238218,-348.97731087,0.00010227,2]
[395128400,1764460238229,-851.02268913,0.00010227,2]
[395128402,1764460238238,-605.6587051,0.00010227,2]
[395128404,1764460238247,-506.33773567,0.00010227,2]
[395128406,1764460238256,-500.0,0.00010227,2]
[395128408,1764460238265,-500.0,0.00010227,2]
[395128409,1764460238274,-500.0,0.00010227,2]
[395128411,1764460238283,-500.0,0.00010227,2]
[395128413,1764460238292,-298.25748594,0.00010227,2]
[395128416,1764460238303,-201.74251406,0.00010227,2]
[395128417,1764460238312,-500.0,0.00010227,2]
[395128419,1764460238321,-500.0,0.00010227,2]
[395128421,1764460238331,-500.0,0.00010227,2]
[395128423,1764460238339,-500.0,0.00010227,2]
[395128425,1764460238348,-350.46892494,0.00010227,2]
[395128428,1764460238365,-149.53107506,0.00010227,2]
[395128430,1764460238374,-500.0,0.00010227,2]
[395128432,1764460238383,-415.59748594,0.00010227,2]
[395128434,1764460238394,-84.40251406,0.00010227,2]
[395128436,1764460238404,-403.64142748,0.00010227,2]
[395128668,1764460240606,-2e-08,0.00010227,2]
[395128672,1764460240645,-96.3585725,0.00010227,2]
[395128673,1764460240654,-500.0,0.00010227,2]
[395128674,1764460240664,-500.0,0.00010227,2]
[395128675,1764460240673,-500.0,0.00010227,2]
[395128676,1764460240682,-500.0,0.00010227,2]
[395128677,1764460240691,-500.0,0.00010227,2]
[395128678,1764460240699,-500.0,0.00010227,2]
[395128679,1764460240708,-500.0,0.00010227,2]
[395128680,1764460240718,-500.0,0.00010227,2]
[395128681,1764460240727,-500.0,0.00010227,2]
[395128682,1764460240736,-500.0,0.00010227,2]
[395128683,1764460240744,-14.25925561,0.00010227,2]
[395128781,1764460243127,-485.74074439,0.00010227,2]
[395128782,1764460243136,-500.0,0.00010227,2]
[395128783,1764460243145,-500.0,0.00010227,2]
[395128784,1764460243154,-500.0,0.00010227,2]
[395128785,1764460243163,-500.0,0.00010227,2]
[395128786,1764460243172,-172.75743812,0.00010227,2]
[395128787,1764460243181,-562.18181749,0.00010228,2]
[395128791,1764460246099,-2658.49818251,0.00010125,2]
[395128792,1764460246110,-135.16955134,0.00010228,2]
[395128793,1764460246123,-358.49902386,0.00010228,2]
[395128795,1764460262728,157.08,1e-05,2]
[395128796,1764460263008,157.08,3.4e-05,2]
[395128845,1764460337612,179.67772185,8.907e-05,2]
[395128971,1764460475778,-458.77804154,9.534e-05,2]
[395128975,1764460479917,-500.0,9.534e-05,2]
[395128978,1764460483137,-174.00637952,9.534e-05,2]
[395128981,1764460485981,-397.52734274,9.534e-05,2]
[395128983,1764460489341,-500.0,9.534e-05,2]
[395128986,1764460493065,-488.98030745,9.534e-05,2]
[395128988,1764460496084,-366.58840774,9.534e-05,2]
[395128989,1764460499120,-198.83640434,9.534e-05,2]
[395128990,1764460499142,-301.16359566,9.63e-05,2]
[395128991,1764460501552,-500.0,9.63e-05,2]
[395128992,1764460503744,-359.22941076,9.63e-05,2]
[395128994,1764460505956,-899.00038661,9.232e-05,2]
[395128995,1764460505981,-570.06067839,9.63e-05,2]
[395128999,1764460508549,-1354.26319852,9.63e-05,2]
[395129000,1764460508572,-114.79786646,9.727e-05,2]
[395129001,1764460510942,-1469.061065,9.727e-05,2]
[395129003,1764460515211,-879.14865321,9.63e-05,2]
[395129005,1764460518906,-300.0,9.63e-05,2]
[395129007,1764460522297,-320.85134679,9.534e-05,2]
[395129010,1764460525283,-529.55,9.534e-05,2]
[395129011,1764460527435,-373.08342651,9.534e-05,2]
[395129041,1764460578965,708.99620533,8.907e-05,2]
[395129067,1764460633934,867.28559036,9.439e-05,2]
[395129068,1764460636492,215.92513299,9.232e-05,2]
[395129082,1764460655207,431.4736751,9.01e-05,2]
[395129083,1764460655501,867.28559036,9.439e-05,2]
[395129099,1764460705342,867.28559036,9.439e-05,2]
[395129102,1764460713424,867.28559036,9.439e-05,2]
[395129108,1764460729082,402.44177006,9.486e-05,2]
[395129118,1764460736992,402.44177006,9.486e-05,2]
[395129191,1764460942720,629.44177006,9.297e-05,2]
[395129192,1764460950806,629.44177006,9.297e-05,2]
[395129193,1764460965857,227.0,9.297e-05,2]
[395129194,1764460973687,227.0,9.297e-05,2]
[395129195,1764460990211,227.0,9.297e-05,2]
[395129196,1764460999161,227.0,9.297e-05,2]
[395129198,1764461013996,227.0,9.297e-05,2]
[395129199,1764461021844,227.0,9.297e-05,2]
[395129201,1764461036932,227.0,9.297e-05,2]
[395129203,1764461043344,7152.12645988,9.097e-05,2]
[395129204,1764461043370,269.03603782,9.097e-05,2]
[395129205,1764461045291,227.0,9.297e-05,2]
[395129206,1764461060387,227.0,9.297e-05,2]
[395129207,1764461068909,227.0,9.297e-05,2]
[395129208,1764461084505,227.0,9.297e-05,2]
[395129209,1764461092258,227.0,9.297e-05,2]
[395129210,1764461107771,227.0,9.297e-05,2]
[395129211,1764461115949,227.0,9.297e-05,2]
[395129213,1764461131076,227.0,9.297e-05,2]
[395129214,1764461139368,227.0,9.297e-05,2]
[395129215,1764461154551,227.0,9.297e-05,2]
[395129220,1764461162346,227.0,9.297e-05,2]
[395129230,1764461178131,227.0,9.297e-05,2]
[395129232,1764461186043,227.0,9.297e-05,2]
[395129235,1764461201171,227.0,9.297e-05,2]
[395129237,1764461209011,227.0,9.297e-05,2]
[395129239,1764461224136,227.0,9.297e-05,2]
[395129241,1764461231865,227.0,9.297e-05,2]
[395129242,1764461233131,-227.0,9.391e-05,2]
[395129243,1764461233152,-402.44177006,9.415e-05,2]
[395129244,1764461233173,-211.41935685,9.825e-05,2]
[395129245,1764461242109,-586.48952413,9.825e-05,2]
[395129246,1764461245072,-185.56999654,9.825e-05,2]
[395129247,1764461247053,1082.18460491,9.727e-05,2]
[395129248,1764461254866,2101.23800581,9.727e-05,2]
[395129249,1764461257144,193.04430167,8.907e-05,2]
[395129250,1764461262186,191.46538692,8.907e-05,2]
[395129251,1764461272241,212.1219231,9.083e-05,2]
[395129253,1764461277519,708.99620533,9.828e-05,2]
[395129260,1764461300135,708.99620533,9.828e-05,2]
[395129269,1764461322327,708.99620533,9.828e-05,2]
[395129270,1764461344472,708.99620533,9.828e-05,2]
[395129271,1764461348088,-708.99620533,9.927e-05,2]
[395129272,1764461348110,-1200.0,0.00010018,2]
[395129273,1764461348129,-300.0,0.00010019,2]
[395129274,1764461348149,-50.0880674,0.00010019,2]
[395129275,1764461348181,-249.9119326,0.00010019,2]
[395129276,1764461348200,-300.0,0.00010019,2]
[395129277,1764461348219,-185.95555613,0.00010027,2]
[395129278,1764461348238,-1200.0,0.00010121,2]
[395129279,1764461348256,-1099.92852957,0.00010122,2]
[395129280,1764461348276,-300.0,0.00010125,2]
[395129281,1764461348295,-998.80143827,0.00010126,2]
[395129282,1764461348494,-488.98030745,0.00010126,2]
[395129283,1764461348517,-500.0,0.00010126,2]
[395129284,1764461348538,-344.02507629,0.00010126,2]
[395129285,1764461348558,-501.1332315,0.00010126,2]
[395129286,1764461348579,-500.0,0.00010126,2]
[395129287,1764461348602,-500.0,0.00010126,2]
[395129288,1764461348629,-500.0,0.00010126,2]
[395129289,1764461348650,-500.0,0.00010126,2]
[395129290,1764461348672,-500.0,0.00010126,2]
[395129291,1764461348694,-247.20222056,0.00010126,2]
[395129292,1764461349103,-252.79777944,0.00010126,2]
[395129293,1764461349127,-500.0,0.00010126,2]
[395129294,1764461349151,-500.0,0.00010126,2]
[395129295,1764461349175,-486.94498595,0.00010126,2]
[395129296,1764461349196,-500.0,0.00010126,2]
[395129297,1764461349218,-500.0,0.00010126,2]
[395129298,1764461349240,-540.6626982,0.00010126,2]
[395129299,1764461349267,-500.0,0.00010126,2]
[395129300,1764461349297,-500.0,0.00010126,2]
[395129301,1764461349338,-483.90979436,0.00010126,2]
[395129305,1764461366508,2101.23800581,0.00010026,2]
[395129306,1764461367740,7898.77199419,0.00010025,2]
[395129307,1764461368067,-200.30210659,0.00010025,2]
[395129308,1764461373075,-1542.81921234,0.00010025,2]
[395129310,1764461374086,-8483.98344608,0.00010025,2]
[395129311,1764461374120,844.71693888,8.907e-05,2]
[395129498,1764461438553,-844.71693888,9.875e-05,2]
[395129500,1764461438564,-367.26230072,9.925e-05,2]
[395129502,1764461438574,-6756.81257345,0.00010025,2]
[395129504,1764461438583,-1200.0,0.00010124,2]
[395129506,1764461438593,-300.0,0.00010125,2]
[395129508,1764461438602,-16.09020564,0.00010126,2]
[395129510,1764461438612,-212.88154725,0.00010126,2]
[395129512,1764461438622,-500.0,0.00010126,2]
[395129514,1764461438631,-500.0,0.00010126,2]
[395129516,1764461438640,-500.0,0.00010126,2]
[395129517,1764461438650,-500.0,0.00010126,2]
[395129520,1764461438660,-500.0,0.00010126,2]
[395129521,1764461438669,-500.0,0.00010126,2]
[395129523,1764461438679,-500.0,0.00010126,2]
[395129526,1764461438689,-500.0,0.00010126,2]
[395129528,1764461438701,-500.0,0.00010126,2]
[395129530,1764461438711,-365.36226503,0.00010126,2]
[395129532,1764461438722,-500.0,0.00010126,2]